[Event "CCCSA IM Norm C 2019"]
[Site "Charlotte"]
[Date "2019.06.09"]
[Round "9.1"]
[White "Martin Del Campo C., Roberto"]
[Black "Adamson, Robby"]
[Result "1/2-1/2"]
[ECO "B14"]
[WhiteElo "2311"]
[BlackElo "2238"]
[Annotator "NA"]
[PlyCount "20"]
[EventDate "2019.06.05"]
[EventType "tourn"]
[EventCountry "USA"]
[SourceTitle "playchess.com"]
[Source "ChessBase"]
[SourceQuality "1"]
[TimeControl "5400+30"]

1. e4 {[%emt 1:30:30]} c6 {[%emt 1:30:30]} 2. d4 {[%emt 0:00:30]} d5 {[%emt 0:00:30]} 3. exd5 {[%emt 0:00:30]} cxd5 {[%emt 0:00:30]} 4. c4 {[%emt 0:00:30]} Nf6 {[%emt 0:00:30]} 5. Nc3 {[%emt 0:00:30]} e6 {[%emt 0:00:30]} 6. Nf3 {[%emt 0:00:30]} Bb4 {[%emt 0:00:30]} 7. cxd5 {[%emt 0:00:30]} Nxd5 {[%emt 0:00:30]} 8. Bd2 {[%emt 0:00:30]} Nc6 {[%emt 0:00:30]} 9. Bd3 {[%emt 0:00:30]} O-O {[%emt 0:00:30]} 10. O-O {[%emt 0:00:30]} Be7 {[%emt 0:00:30]} 1/2-1/2

[Event "CCCSA IM Norm C 2019"]
[Site "Charlotte"]
[Date "2019.06.10"]
[Round "9.2"]
[White "Wang, Jason"]
[Black "Ludwig, John"]
[Result "1/2-1/2"]
[ECO "D34"]
[WhiteElo "2285"]
[BlackElo "2374"]
[Annotator "ChessBase"]
[PlyCount "120"]
[EventDate "2019.06.05"]
[EventType "tourn"]
[EventCountry "USA"]
[SourceTitle "playchess.com"]
[Source "ChessBase"]
[SourceQuality "1"]
[TimeControl "5400+30"]

1. d4 {[%emt 1:30:30]} d5 {[%emt 1:30:30]} 2. c4 {[%emt 0:00:30]} e6 {[%emt 0:00:30]} 3. Nc3 {[%emt 0:00:30]} c5 {[%emt 0:00:30]} 4. cxd5 {[%emt 0:00:30]} exd5 {[%emt 0:00:30]} 5. Nf3 {[%emt 0:00:30]} Nc6 {[%emt 0:00:30]} 6. g3 {[%emt 0:00:30]} Nf6 {[%emt 0:00:30]} 7. Bg2 {[%emt 0:00:30]} Be7 {[%emt 0:00:30]} 8. O-O {[%emt 0:00:30]} O-O {[%emt 0:00:30]} 9. b3 {[%emt 0:00:30]} Ne4 {[%emt 0:00:30]} 10. Bb2 {[%emt 0:00:30]} Bf6 {[%emt 0:00:30]} 11. Na4 {[%emt 0:00:30]} Re8 {[%emt 0:00:30]} 12. Rc1 {[%emt 0:00:30]} c4 {[%emt 0:00:30]} 13. bxc4 {[%emt 0:00:30]} dxc4 {[%emt 0:00:30]} 14. Ne5 {[%emt 0:00:30]} Bxe5 {[%emt 0:00:30]} 15. dxe5 {[%emt 0:00:30]} Bf5 {[%emt 0:00:30]} 16. Bxe4 {[%emt 0:00:30]} Bxe4 {[%emt 0:00:30]} 17. Rxc4 {[%emt 0:00:30]} Bd5 {[%emt 0:00:30]} 18. Rg4 {[%emt 0:00:30]} Be6 {[%emt 0:00:30]} 19. Re4 {[%emt 0:00:30]} Qxd1 {[%emt 0:00:30]} 20. Rxd1 {[%emt 0:00:30]} Bxa2 {[%emt 0:00:30]} 21. Nc5 {[%emt 0:00:30]} b5 {[%emt 0:00:30]} 22. Nb7 {[%emt 0:00:30]} a5 {[%emt 0:00:30]} 23. f4 {[%emt 0:00:30]} b4 {[%emt 0:00:30]} 24. f5 {[%emt 0:00:30]} a4 {[%emt 0:00:30]} 25. e6 {[%emt 0:00:30]} a3 {[%emt 0:00:30]} 26. Ba1 {[%emt 0:00:30]} fxe6 {[%emt 0:00:30]} 27. Rd7 {[%emt 0:00:30]} Re7 {[%emt 0:00:30]} 28. Rxe7 {[%emt 0:00:30]} Nxe7 {[%emt 0:00:30]} 29. Rxb4 {[%emt 0:00:30]} exf5 {[%emt 0:00:30]} 30. Nc5 {[%emt 0:00:30]} Bd5 {[%emt 0:00:30]} 31. Nd3 {[%emt 0:00:30]} a2 {[%emt 0:00:30]} 32. Kf2 {[%emt 0:00:30]} Be4 {[%emt 0:00:30]} 33. Ke1 {[%emt 0:00:30]} Nc6 {[%emt 0:00:30]} 34. Rb3 {[%emt 0:00:30]} Bd5 {[%emt 0:00:30]} 35. Rb5 {[%emt 0:00:30]} Ra5 {[%emt 0:00:30]} 36. Rb7 {[%emt 0:00:30]} Ra7 {[%emt 0:00:30]} 37. Rxa7 {[%emt 0:00:30]} Nxa7 {[%emt 0:00:30]} 38. Nb4 Be6 {[%emt 0:00:30]} 39. Kd2 {[%emt 0:01:00]} Nb5 {[%emt 0:00:30]} 40. Kc2 {[%emt 0:00:30]} Kf7 {[%emt 0:00:30]} 41. Kb2 {[%emt 0:00:30]} Nd4 {[%emt 0:00:30]} 42. Nxa2 {[%emt 0:00:30]} Bxa2 {[%emt 0:00:30]} 43. Kxa2 {[%emt 0:00:30]} Nxe2 {[%emt 0:00:30]} 44. Kb3 {[%emt 0:00:30]} g5 {[%emt 0:00:30]} 45. Kc4 {[%emt 0:00:30]} Ng1 {[%emt 0:00:30]} 46. Kd5 {[%emt 0:00:30]} Nf3 {[%emt 0:00:30]} 47. h3 {[%emt 0:00:30]} h5 {[%emt 0:00:30]} 48. Be5 {[%emt 0:00:30]} Kg6 {[%emt 0:00:30]} 49. Bc7 {[%emt 0:00:30]} h4 {[%emt 0:00:30]} 50. gxh4 {[%emt 0:00:30]} Nxh4 {[%emt 0:00:30]} 51. Bg3 {[%emt 0:00:30]} Nf3 {[%emt 0:00:30]} 52. Bf2 {[%emt 0:00:30]} Kf6 {[%emt 0:00:30]} 53. Bb6 {[%emt 0:00:30]} f4 {[%emt 0:00:30]} 54. Ke4 {[%emt 0:00:30]} Nd2+ {[%emt 0:00:30]} 55. Kd3 {[%emt 0:00:30]} Nf1 {[%emt 0:00:30]} 56. h4 {[%emt 0:00:30]} gxh4 {[%emt 0:00:30]} 57. Bd8+ {[%emt 0:00:30]} Kf5 {[%emt 0:00:30]} 58. Bxh4 {[%emt 0:00:30]} Kg4 {[%emt 0:00:30]} 59. Bf2 {[%emt 0:00:30]} Kf3 {[%emt 0:00:30]} 60. Bb6 {[%emt 0:00:30]} Ne3 {[%emt 0:00:30]} 1/2-1/2